fUST/lending_fUST_20251202
["ID","MTS","AMOUNT","RATE_DAILY","PERIOD"]
[395315099,1764613831614,-300.0,0.00011475,2]
[395315100,1764613831623,-106.54510406,0.00011476,2]
[395315141,1764613837705,-21396.28431441,0.00011476,2]
[395315142,1764613837718,-1417.25,0.00011476,2]
[395315143,1764613837764,-1192.38614843,0.00011476,2]
[395315144,1764613837775,-1501.08898084,0.00011476,2]
[395315145,1764613837787,-541.09,0.00011476,2]
[395315162,1764613839796,-2127.4542739,0.00011476,2]
[395315165,1764613839808,-4231.89251024,0.00011476,2]
[395315167,1764613839818,-3001.14898043,0.00011476,2]
[395315171,1764613839851,-1085.31156499,0.00011476,2]
[395315459,1764613842769,-9482.55617775,0.00011476,2]
[395315465,1764613842825,-1647.11929773,0.00011476,2]
[395315734,1764613845779,-200510.27038789,0.00011476,2]
[395315747,1764613845886,-7657.58372646,0.00011476,2]
[395315749,1764613845898,-333.0,0.00011476,2]
[395316028,1764614643332,250.0,0.0002,30]
[395316029,1764614830752,150.0,0.00016515,30]
[395316030,1764614831161,150.0,0.00018017,30]
[395316031,1764614831811,150.0,0.00019518,30]
[395316032,1764614838092,-346.65029263,0.00010551,2]
[395316033,1764614838112,-190.85658578,0.00010658,2]
[395316034,1764614838131,-155.79370685,0.00010658,2]
[395316035,1764614838151,-162.75597952,0.00010753,2]
[395316036,1764614838175,-162.75597952,0.00010972,2]
[395316037,1764614838193,-195.53709207,0.00011046,2]
[395316038,1764614838213,-170.973,0.00011148,2]
[395316039,1764614838232,-400.0,0.0001135,2]
[395316040,1764614838254,-257.81622938,0.00011375,2]
[395316041,1764614838275,-841.0,0.00011375,2]
[395316042,1764614838294,-300.0,0.00011375,2]
[395316043,1764614838314,-7660.97680693,0.00011375,2]
[395316044,1764614838342,-839.67302418,0.00011375,2]
[395316045,1764614963133,-1535.37105755,0.00010405,2]
[395316046,1764614973083,-2324.65744195,0.00010405,2]
[395316047,1764614973114,-162.58094891,0.00010534,2]
[395316048,1764614973141,-216.3027588,0.00010663,2]
[395316049,1764614973164,-40.45885034,0.00010771,2]
[395316089,1764615031865,-175.84390846,0.00010663,2]
[395316091,1764615031875,-77.23739575,0.00010771,2]
[395316119,1764615037900,-98.60651271,0.00010771,2]
[395316121,1764615037910,-216.3027588,0.0001088,2]
[395316122,1764615037919,-300.0,0.00011375,2]
[395316124,1764615037931,-209385.09072849,0.00011376,2]
[395316125,1764615038085,-1566.60158843,0.00011376,2]
[395316162,1764615040242,-356.19106008,0.00011376,2]
[395316429,1764615043076,-659.73746167,0.00011262,2]
[395316431,1764615043085,-4161.86552531,0.00011376,2]
[395316433,1764615043096,-3819.14115196,0.00011376,2]
[395316435,1764615043108,-4420.42477335,0.00011376,2]
[395316723,1764615046041,-2272.23679476,0.00011376,2]
[395316726,1764615046201,-1935.2068171,0.00011376,2]
[395316728,1764615046214,-18778.32132879,0.00011376,2]
[395316837,1764615240018,150.0,0.00017151,30]
[395316838,1764615603365,250.0,0.0002,30]
[395316839,1764615650162,150.0,0.00016382,30]
[395316840,1764615835236,200.53850786,9.228e-05,2]
[395316841,1764615857821,200.53850786,9.228e-05,2]
[395316842,1764615922463,200.53850786,9.228e-05,2]
[395316848,1764615945127,-200.53850786,9.321e-05,2]
[395316849,1764615945150,-166.66674741,9.488e-05,2]
[395316850,1764615945173,-471.78,0.0001,2]
[395316851,1764615945194,-471.78,0.0001,2]
[395316852,1764615945214,-471.78,0.0001,2]
[395316853,1764615945236,-231.28369723,0.00011271,2]
[395316854,1764615945257,-500.0,0.00011271,2]
[395316855,1764615945277,-312.50349628,0.00011271,2]
[395316857,1764616033133,-162.53176909,0.00011158,2]
[395316858,1764616052089,-989.68404533,0.00011158,2]
[395316859,1764616052110,-300.0,0.0001127,2]
[395316860,1764616052132,-187.49650372,0.00011271,2]
[395316861,1764616052153,-500.0,0.00011271,2]
[395316862,1764616052174,-500.0,0.00011271,2]
[395316863,1764616052198,-500.0,0.00011271,2]
[395316864,1764616052219,-173.42403757,0.00011271,2]
[395316865,1764616146996,1000.0,0.0002,30]
[395316873,1764616232141,-1016.14670386,0.00011271,2]
[395316874,1764616232151,-231.28369723,0.00011271,2]
[395316875,1764616232160,-166.65726421,0.00011273,2]
[395316876,1764616232170,-500.0,0.00011275,2]
[395316877,1764616232179,-494.51663392,0.00011275,2]
[395316878,1764616232189,-170.973,0.00011275,2]
[395316879,1764616232199,-300.0,0.00011275,2]
[395316880,1764616232208,-300.0,0.00011275,2]
[395316881,1764616232218,-1200.0,0.00011275,2]
[395316882,1764616232227,-799.81421255,0.00011276,2]
[395316883,1764616232240,-332.82726686,0.00011276,2]
[395316884,1764616232253,-619.84912104,0.00011276,2]
[395316983,1764616238187,-474.65,0.00011276,2]
[395316984,1764616238243,-703.52979223,0.00011276,2]
[395316985,1764616238255,-322.46275452,0.00011276,2]
[395316986,1764616238266,-836.55525642,0.00011276,2]
[395316987,1764616238349,-11935.92355807,0.00011276,2]
[395317496,1764616563146,250.0,0.0002,30]
[395317507,1764617143256,-298.14107641,9.839e-05,2]
[395317508,1764617143278,-261.23047399,9.839e-05,2]
[395317510,1764617238111,-79.16145211,9.839e-05,2]
[395317511,1764617238131,-166.58149364,9.894e-05,2]
[395317512,1764617238153,-369.53080581,9.949e-05,2]
[395317513,1764617238172,-170.97322041,0.00010952,2]
[395317514,1764617238192,-300.0,0.00011174,2]
[395317515,1764617238212,-54.68961361,0.00011174,2]
[395317516,1764617241103,-141.31038639,0.00011174,2]
[395317517,1764617241127,-300.0,0.00011174,2]
[395317518,1764617241148,-1151.90297132,0.00011175,2]
[395317519,1764617243385,-3078.24891922,0.00011175,2]
[395317522,1764617345088,-1096.11125641,0.00011063,2]
[395317523,1764617345109,-300.0,0.00011174,2]
[395317524,1764617345129,-1167.44302151,0.00011175,2]
[395317525,1764617345149,-558.95621362,0.00011175,2]
[395317526,1764617345170,-500.0,0.00011175,2]
[395317527,1764617345190,-500.0,0.00011175,2]
[395317528,1764617345210,-580.66250971,0.00011175,2]
[395317529,1764617345232,-201.28186975,0.00011175,2]
[395317530,1764617345253,-176.50260609,0.00011175,2]
[395317531,1764617345278,-115384.34097054,0.00011176,2]
[395317601,1764617432338,-231.28369723,0.00011174,2]
[395317602,1764617432348,-240.0,0.00011175,2]
[395317604,1764617432359,-4665.14601446,0.00011176,2]
[395317605,1764617432373,-1289.36353134,0.00011176,2]
[395317620,1764617438389,-13069.84203683,0.00011176,2]
[395317734,1764617444156,-1166.36,0.00011176,2]
[395317744,1764617523067,250.0,0.0002,30]
[395317754,1764618004802,-787.5011063,9.801e-05,2]
[395317755,1764618005083,-787.5011063,9.9e-05,2]
[395317756,1764618005108,-471.78,0.0001,2]
[395317757,1764618005130,-471.78,0.0001,2]
[395317758,1764618005153,-471.78,0.0001,2]
[395317759,1764618005176,-170.4323804,0.0001005,2]
[395317760,1764618005200,-787.5011063,0.00010101,2]
[395317761,1764618005226,-170.973,0.00010952,2]
[395317762,1764618005250,-300.0,0.00010978,2]
[395317763,1764618005274,-23047.20954651,0.00010979,2]
[395317764,1764618011182,308.61015011,0.0001098,2]
[395317765,1764618018973,1248.55748812,0.0001098,2]
[395317766,1764618089242,-300.0,0.00010999,2]
[395317767,1764618089265,-596.2938552,0.00011,2]
[395317768,1764618089288,-301.7915627,0.00011,2]
[395317769,1764618089312,-8801.9145821,0.00011,2]
[395317772,1764618104438,-6562.89178224,0.00011,2]
[395317773,1764618156452,-620.04885361,0.00011,2]
[395317774,1764618156473,-167.02373279,0.00011074,2]
[395317775,1764618156496,-490.89730883,0.00011075,2]
[395317776,1764618156519,-500.0,0.00011075,2]
[395317777,1764618156540,-500.0,0.00011075,2]
[395317778,1764618156561,-259.88628263,0.00011075,2]
[395317779,1764618156584,-210.38456092,0.00011075,2]
[395317780,1764618156606,-377.14953474,0.00011075,2]
[395317781,1764618156633,-96874.60972648,0.00011076,2]
[395317782,1764618160350,-100000.0,0.00011076,2]
[395317783,1764618189725,-100000.0,0.00011076,2]
[395317784,1764618209599,-100000.0,0.00011076,2]
[395317785,1764618238668,-100000.0,0.00011076,2]
[395317786,1764618345081,-162.75597952,0.00010854,2]
[395317787,1764618345102,-162.75597952,0.00010964,2]
[395317788,1764618345121,-10243.20424288,0.00010976,2]
[395317789,1764618345142,-300.0,0.00011075,2]
[395317790,1764618345163,-841.0,0.00011075,2]
[395317791,1764618345187,-103406.58503771,0.00011076,2]
[395317792,1764618426091,-183.89431311,0.00010965,2]
[395317793,1764618426113,-9884.53468422,0.00011076,2]
[395317794,1764618453106,-915.02705753,0.00011076,2]
[395317795,1764618483259,250.0,0.0002,30]
[395317864,1764618638710,-216.3027588,0.00010866,2]
[395317865,1764618638721,-500.0,0.00010975,2]
[395317866,1764618638730,-500.0,0.00010975,2]
[395317867,1764618638740,-490.89730883,0.00010975,2]
[395317868,1764618638750,-223.26994097,0.00010975,2]
[395317869,1764618638761,-37546.73532356,0.00010976,2]
[395317870,1764618638773,-729.41544042,0.00010976,2]
[395317907,1764618640972,-104057.98666208,0.00010976,2]
[395318191,1764618643781,-2740.0,0.00010976,2]
[395318194,1764618643792,-458.19500025,0.00010976,2]
[395318202,1764618643857,-12790.70013774,0.00010976,2]
[395318204,1764618643869,-396.205,0.00010976,2]
[395318207,1764618643880,-447.54,0.00010976,2]
[395318377,1764618646616,-28210.4196346,0.00010976,2]
[395318378,1764618646670,-580.99999998,0.00010976,2]
[395318379,1764618646723,-13030.93769088,0.00010976,2]
[395318380,1764618646777,-2398.0,0.00010976,2]
[395319385,1764619282185,150.0,0.00017774,30]
[395319386,1764619443429,250.0,0.0002,30]
[395319387,1764619497389,215.45103926,9.111e-05,2]
[395319389,1764619629380,-162.53176909,0.00010543,2]
[395319390,1764619643101,-8.44123091,0.00010543,2]
[395319391,1764619643122,-185.26231128,0.00010703,2]
[395319392,1764619643142,-300.0,0.00010706,2]
[395319393,1764619643162,-374.19476553,0.00010707,2]
[395319394,1764619643182,-673.55057795,0.00010707,2]
[395319395,1764619643202,-1197.42324968,0.00010707,2]
[395319396,1764619643221,-1870.97382763,0.00010707,2]
[395319397,1764619643241,-1702.14106471,0.00010707,2]
[395319398,1764619758095,-989.36704476,0.000106,2]
[395319399,1764619758115,-989.36704476,0.00010707,2]
[395319400,1764619758135,-95.21999752,0.00010756,2]
[395319416,1764619832147,-75.75300248,0.00010756,2]
[395319417,1764619832158,-6828.8028286,0.00010776,2]
[395319418,1764619832168,-686.0,0.00010874,2]
[395319419,1764619832178,-343.62811618,0.00010875,2]
[395319420,1764619832187,-865.0,0.00010875,2]
[395319421,1764619832197,-300.0,0.00010875,2]
[395319422,1764619832206,-5953.70969593,0.00010876,2]
[395319441,1764619837921,-2171.90664597,0.00010876,2]
[395319486,1764619839966,-881874.3836581,0.00010876,2]
[395319487,1764619839976,-500.0,0.00010959,2]
[395319488,1764619839986,-356.28895868,0.00010959,2]
[395319489,1764619839996,-1099.0,0.00010969,2]
[395319490,1764619840005,-151.0,0.00010969,2]
[395319491,1764619840017,-500.0,0.00010969,2]
[395319492,1764619840027,-151.0,0.00010969,2]
[395319493,1764619840036,-151.50502985,0.00010969,2]
[395319494,1764619840045,-500.0,0.00010969,2]
[395319495,1764619840055,-151.0,0.00010969,2]
[395319496,1764619840064,-151.0,0.00010969,2]
[395319497,1764619840073,-151.0,0.00010969,2]
[395319498,1764619840083,-151.0,0.00010969,2]
[395319499,1764619840092,-500.0,0.00010969,2]
[395319500,1764619840101,-500.0,0.00010969,2]
[395319501,1764619840111,-500.0,0.00010969,2]
[395319502,1764619840120,-9668.09285262,0.00010969,2]
[395319503,1764619840130,-299.32661203,0.00010969,2]
[395319504,1764619840139,-223.0315306,0.00010969,2]
[395319505,1764619840148,-500.0,0.00010969,2]
[395319506,1764619840157,-500.0,0.00010969,2]
[395319507,1764619840167,-500.0,0.00010969,2]
[395319508,1764619840180,-500.0,0.00010969,2]
[395319509,1764619840189,-250.0,0.00010969,2]
[395319510,1764619840199,-500.0,0.00010969,2]
[395319511,1764619840209,-250.0,0.00010969,2]
[395319512,1764619840218,-220.16064562,0.00010969,2]
[395319513,1764619840228,-250.0,0.00010969,2]
[395319514,1764619840237,-500.0,0.00010969,2]
[395319515,1764619840247,-251.98006874,0.00010969,2]
[395319516,1764619840256,-250.0,0.00010969,2]
[395319517,1764619840265,-250.0,0.00010969,2]
[395319518,1764619840275,-250.0,0.00010969,2]
[395319519,1764619840284,-250.0,0.00010969,2]
[395319520,1764619840293,-500.0,0.00010969,2]
[395319521,1764619840303,-250.0,0.00010969,2]
[395319522,1764619840312,-500.0,0.00010969,2]
[395319523,1764619840321,-500.0,0.00010969,2]
[395319524,1764619840330,-250.0,0.00010969,2]
[395319525,1764619840340,-160.0,0.00010969,2]
[395319526,1764619840349,-500.0,0.00010969,2]
[395319527,1764619840358,-250.0,0.00010969,2]
[395319528,1764619840368,-160.0,0.00010969,2]
[395319529,1764619840378,-500.0,0.00010969,2]
[395319530,1764619840387,-500.0,0.00010969,2]
[395319531,1764619840397,-250.0,0.00010969,2]
[395319532,1764619840406,-160.0,0.00010969,2]
[395319533,1764619840417,-500.0,0.00010969,2]
[395319534,1764619840433,-500.0,0.00010969,2]
[395319535,1764619840450,-250.0,0.00010969,2]
[395319536,1764619840461,-160.0,0.00010969,2]
[395319537,1764619840471,-500.0,0.00010969,2]
[395319538,1764619840485,-500.0,0.00010969,2]
[395319539,1764619840503,-250.0,0.00010969,2]
[395319540,1764619840515,-160.0,0.00010969,2]
[395319541,1764619840525,-500.0,0.00010969,2]
[395319542,1764619840536,-500.0,0.00010969,2]
[395319543,1764619840547,-324.35507689,0.00010969,2]
[395319544,1764619840557,-195.80501418,0.00010969,2]
[395319545,1764619840566,-500.0,0.00010969,2]
[395319546,1764619840576,-500.0,0.00010969,2]
[395319547,1764619840586,-500.0,0.00010969,2]
[395319548,1764619840597,-500.0,0.00010969,2]
[395319549,1764619840608,-500.0,0.00010969,2]
[395319550,1764619840617,-500.0,0.00010969,2]
[395319551,1764619840627,-500.0,0.00010969,2]
[395319552,1764619840637,-600.23725749,0.00010969,2]
[395319553,1764619840646,-500.0,0.00010969,2]
[395319554,1764619840656,-500.0,0.00010969,2]
[395319555,1764619840666,-500.0,0.00010969,2]
[395319556,1764619840678,-500.0,0.00010969,2]
[395319557,1764619840688,-500.0,0.00010969,2]
[395319558,1764619840698,-500.0,0.00010969,2]
[395319559,1764619840709,-500.0,0.00010969,2]
[395319560,1764619840719,-4335.73295486,0.00010969,2]
[395319561,1764619840729,-500.0,0.00010969,2]
[395319562,1764619840739,-434.64671491,0.00011024,2]
[395319563,1764619840749,-8414.9020654,0.00011045,2]
[395319564,1764619840760,-945.5034579,0.00011045,2]
[395319565,1764619840770,-9534.6878851,0.00011045,2]
[395319566,1764619840780,-406.8156412,0.00011046,2]
[395319567,1764619840790,-797.3941211,0.00011046,2]
[395319568,1764619840802,-151.0,0.00011076,2]
[395319569,1764619840813,-151.0,0.00011076,2]
[395319570,1764619840824,-12843.4584413,0.00011082,2]
[395319571,1764619840834,-1099.0,0.00011106,2]
[395319572,1764619840844,-198.49162477,0.00011106,2]
[395319573,1764619840854,-500.0,0.00011106,2]
[395319574,1764619840863,-151.0,0.00011106,2]
[395319575,1764619840872,-500.0,0.00011106,2]
[395319576,1764619840882,-151.0,0.00011106,2]
[395319577,1764619840892,-202.49792026,0.00011106,2]
[395319578,1764619840902,-151.0,0.00011106,2]
[395319579,1764619840912,-151.0,0.00011106,2]
[395319580,1764619840924,-500.0,0.00011106,2]
[395319581,1764619840935,-500.0,0.00011106,2]
[395319582,1764619840945,-500.0,0.00011106,2]
[395319583,1764619840955,-541.98,0.00011175,2]
[395319584,1764619840964,-301.7915627,0.000112,2]
[395319585,1764619840974,-326.1971717,0.000112,2]
[395319586,1764619840984,-596.2938552,0.000112,2]
[395319587,1764619840995,-151.0,0.00011213,2]
[395319588,1764619841004,-1099.0,0.00011243,2]
[395319589,1764619841014,-500.0,0.00011243,2]
[395319590,1764619841024,-151.0,0.00011243,2]
[395319591,1764619841033,-500.0,0.00011243,2]
[395319592,1764619841043,-151.0,0.00011243,2]
[395319593,1764619841052,-151.0,0.00011243,2]
[395319594,1764619841062,-500.0,0.00011243,2]
[395319595,1764619841071,-500.0,0.00011243,2]
[395319596,1764619841080,-500.04919629,0.00011243,2]
[395319597,1764619841089,-500.0,0.00011243,2]
[395319598,1764619841099,-151.0,0.000113,2]
[395319599,1764619841109,-151.0,0.000113,2]
[395319600,1764619841119,-301.7915627,0.000113,2]
[395319601,1764619841128,-596.2938552,0.000113,2]
[395319602,1764619841137,-301.7915627,0.000113,2]
[395319603,1764619841147,-397.0225846,0.000113,2]
[395319604,1764619841157,-397.0225846,0.000113,2]
[395319605,1764619841166,-598.0632008,0.000113,2]
[395319606,1764619841179,-397.0225846,0.000113,2]
[395319607,1764619841188,-397.0225846,0.000113,2]
[395319608,1764619841197,-408.1286227,0.000113,2]
[395319609,1764619841206,-151.0,0.000113,2]
[395319610,1764619841215,-195.53709207,0.00011324,2]
[395319611,1764619841225,-151.0,0.0001135,2]
[395319612,1764619841234,-1099.0,0.0001138,2]
[395319613,1764619841243,-500.0,0.0001138,2]
[395319614,1764619841253,-151.0,0.0001138,2]
[395319615,1764619841262,-151.0,0.0001138,2]
[395319616,1764619841271,-151.0,0.000114,2]
[395319617,1764619841280,-151.0,0.000114,2]
[395319618,1764619841290,-200.73776882,0.00011417,2]
[395319619,1764619841299,-151.0,0.00011487,2]
[395319620,1764619841309,-151.0,0.000115,2]
[395319621,1764619841318,-1099.0,0.00011517,2]
[395319622,1764619841327,-500.0,0.00011517,2]
[395319623,1764619841336,-151.0,0.00011517,2]
[395319624,1764619841346,-151.0,0.00011517,2]
[395319625,1764619841355,-151.0,0.00011517,2]
[395319626,1764619841365,-219.546753,0.00011517,2]
[395319627,1764619841374,-185.657161,0.00011517,2]
[395319628,1764619841384,-449.554716,0.00011517,2]
[395319629,1764619841393,-449.554716,0.00011517,2]
[395319630,1764619841403,-449.554716,0.00011517,2]
[395319631,1764619841412,-449.554716,0.00011517,2]
[395319632,1764619841424,-500.0,0.00011517,2]
[395319633,1764619841434,-231.28369723,0.00011517,2]
[395319634,1764619841443,-151.0,0.00011574,2]
[395319635,1764619841454,-151.0,0.00011574,2]
[395319636,1764619841464,-151.0,0.00011574,2]
[395319637,1764619841474,-151.0,0.00011574,2]
[395319638,1764619841483,-151.0,0.00011574,2]
[395319639,1764619841493,-151.0,0.00011574,2]
[395319640,1764619841502,-151.0,0.00011624,2]
[395319641,1764619841511,-1099.0,0.00011654,2]
[395319642,1764619841522,-172.0,0.00011654,2]
[395319643,1764619841533,-201.40505804,0.00011654,2]
[395319644,1764619841542,-360.96665589,0.00011667,2]
[395319645,1764619841552,-151.0,0.00011711,2]
[395319646,1764619841562,-245.0,0.00011761,2]
[395319647,1764619841571,-1099.0,0.00011791,2]
[395319648,1764619841581,-500.0,0.00011791,2]
[395319649,1764619841590,-151.0,0.000118,2]
[395319650,1764619841599,-1099.0,0.00011928,2]
[395319651,1764619841609,-150.0,0.00011982,2]
[395319652,1764619841618,-150.053,0.00011982,2]
[395319653,1764619841627,-150.16,0.00011982,2]
[395319654,1764619841637,-353.71323156,0.0001199,2]
[395319655,1764619841646,-401.14513243,0.00012037,2]
[395319656,1764619841656,-1099.0,0.00012065,2]
[395319657,1764619841665,-500.0,0.00012065,2]
[395319658,1764619841678,-239.84119403,0.00012065,2]
[395319659,1764619841688,-151.0,0.000121,2]
[395319660,1764619841697,-1099.0,0.00012202,2]
[395319661,1764619841708,-151.0,0.000123,2]
[395319662,1764619841718,-272.15147349,0.00012308,2]
[395319663,1764619841727,-1260.17,0.00012329,2]
[395319664,1764619841737,-1050.14,0.00012329,2]
[395319665,1764619841746,-875.12,0.00012329,2]
[395319666,1764619841757,-729.27,0.00012329,2]
[395319667,1764619841766,-607.72,0.00012329,2]
[395319668,1764619841775,-506.43,0.00012329,2]
[395319669,1764619841785,-422.03,0.00012329,2]
[395319670,1764619841795,-351.69,0.00012329,2]
[395319671,1764619841804,-293.08,0.00012329,2]
[395319672,1764619841814,-244.23,0.00012329,2]
[395319673,1764619841824,-203.52,0.00012329,2]
[395319674,1764619841833,-169.6,0.00012329,2]
[395319675,1764619841843,-848.05,0.00012329,2]
[395319676,1764619841853,-151.0,0.00012329,2]
[395319677,1764619841863,-152.518217,0.00012329,2]
[395319678,1764619841873,-231.70408,0.00012329,2]
[395319679,1764619841883,-1099.0,0.00012339,2]
[395319680,1764619841892,-500.0,0.00012339,2]
[395319681,1764619841903,-300.0,0.00012426,2]
[395319682,1764619841912,-300.0,0.00012426,2]
[395319683,1764619841925,-300.0,0.00012426,2]
[395319684,1764619842152,-300.0,0.00012426,2]
[395319685,1764619842172,-300.0,0.00012426,2]
[395319686,1764619842182,-300.0,0.00012426,2]
[395319687,1764619842193,-300.0,0.00012426,2]
[395319688,1764619842203,-300.0,0.00012426,2]
[395319689,1764619842213,-300.0,0.00012426,2]
[395319690,1764619842223,-300.0,0.00012426,2]
[395319691,1764619842233,-300.0,0.00012426,2]
[395319692,1764619842243,-300.0,0.00012426,2]
[395319694,1764619842253,-300.0,0.00012426,2]
[395319695,1764619842262,-300.0,0.00012426,2]
[395319696,1764619842272,-300.0,0.00012426,2]
[395319697,1764619842281,-600.0,0.00012426,2]
[395319698,1764619842290,-1099.0,0.00012476,2]
[395319699,1764619842300,-250.0,0.00012476,2]
[395319701,1764619842311,-151.0,0.00012482,2]
[395319702,1764619842320,-151.0,0.00012482,2]
[395319703,1764619842329,-151.0,0.00012482,2]
[395319704,1764619842339,-1877.6184455,0.00012482,2]
[395319705,1764619842348,-2127.4764347,0.00012482,2]
[395319706,1764619842358,-2865.7629388,0.00012524,2]
[395319707,1764619842368,-151.0,0.0001253,2]
[395319708,1764619842377,-171.185194,0.0001253,2]
[395319709,1764619842387,-151.0,0.00012533,2]
[395319710,1764619842396,-151.0,0.00012533,2]
[395319711,1764619842405,-151.0,0.00012533,2]
[395319712,1764619842415,-151.0,0.00012533,2]
[395319713,1764619842424,-151.0,0.000126,2]
[395319714,1764619842436,-1099.0,0.00012613,2]
[395319715,1764619842446,-500.0,0.00012613,2]
[395319716,1764619842456,-248.71531821,0.00012613,2]
[395319717,1764619842465,-272.15147349,0.00012652,2]
[395319718,1764619842475,-214.23733677,0.00012654,2]
[395319719,1764619842484,-406.8156412,0.00012693,2]
[395319720,1764619842494,-797.3941211,0.00012693,2]
[395319721,1764619842504,-1099.0,0.0001275,2]
[395319722,1764619842516,-418.9533044,0.00012803,2]
[395319723,1764619842525,-474.7041576,0.00012803,2]
[395319724,1764619842535,-639.4381435,0.00012846,2]
[395319725,1764619842546,-1099.0,0.00012887,2]
[395319726,1764619842555,-500.0,0.00012887,2]
[395319727,1764619842565,-151.0,0.000129,2]
[395319728,1764619842575,-151.0,0.000129,2]
[395319729,1764619842585,-151.0,0.000129,2]
[395319730,1764619842595,-151.0,0.000129,2]
[395319731,1764619842604,-151.0,0.000129,2]
[395319732,1764619842614,-151.0,0.000129,2]
[395319733,1764619842624,-151.0,0.000129,2]
[395319734,1764619842633,-151.0,0.000129,2]
[395319735,1764619842643,-151.0,0.000129,2]
[395319736,1764619842653,-151.0,0.000129,2]
[395319737,1764619842662,-449.554716,0.000129,2]
[395319738,1764619842674,-449.554716,0.000129,2]
[395319739,1764619842684,-449.554716,0.000129,2]
[395319740,1764619842694,-449.554716,0.000129,2]
[395319741,1764619842704,-272.42362497,0.00012995,2]
[395319742,1764619842714,-1099.0,0.00013024,2]
[395319743,1764619842724,-6828.80282858,0.0001307,2]
[395319744,1764619842734,-1099.0,0.00013161,2]
[395319745,1764619842743,-500.0,0.00013161,2]
[395319746,1764619842753,-257.91778498,0.00013161,2]
[395319747,1764619842763,-151.0,0.000132,2]
[395319748,1764619842773,-151.0,0.000132,2]
[395319750,1764619842782,-151.0,0.000132,2]
[395319752,1764619842792,-245.0,0.00013218,2]
[395319754,1764619842801,-648.37707052,0.00013273,2]
[395319756,1764619842810,-500.0,0.00013273,2]
[395319758,1764619842819,-500.0,0.00013273,2]
[395319760,1764619842829,-500.0,0.00013273,2]
[395319762,1764619842838,-500.0,0.00013273,2]
[395319764,1764619842848,-500.0,0.00013273,2]
[395319766,1764619842857,-500.0,0.00013273,2]
[395319768,1764619842867,-500.0,0.00013273,2]
[395319770,1764619842876,-500.0,0.00013273,2]
[395319772,1764619842885,-500.0,0.00013273,2]
[395319774,1764619842894,-500.0,0.00013273,2]
[395319776,1764619842904,-500.0,0.00013273,2]
[395319778,1764619842913,-500.0,0.00013273,2]
[395319780,1764619842923,-500.0,0.00013273,2]
[395319782,1764619842932,-500.0,0.00013273,2]
[395319784,1764619842941,-500.0,0.00013273,2]
[395319785,1764619842951,-500.0,0.00013273,2]
[395319787,1764619842960,-500.0,0.00013273,2]
[395319789,1764619842971,-500.0,0.00013273,2]
[395319791,1764619842981,-500.0,0.00013273,2]
[395319793,1764619842991,-160.09386729,0.00013273,2]
[395319795,1764619843003,-163.50305013,0.00013273,2]
[395319797,1764619843015,-500.0,0.00013273,2]
[395319799,1764619843026,-160.10172978,0.00013273,2]
[395319801,1764619843037,-160.08360308,0.00013273,2]
[395319803,1764619843048,-500.0,0.00013273,2]
[395319805,1764619843059,-195.53635732,0.00013273,2]
[395319807,1764619843069,-500.0,0.00013273,2]
[395319809,1764619843079,-500.0,0.00013273,2]
[395319811,1764619843088,-500.0,0.00013273,2]
[395319812,1764619843098,-267.72587169,0.00013273,2]
[395319813,1764619843106,-500.0,0.00013273,2]
[395319814,1764619843115,-500.0,0.00013273,2]
[395319815,1764619843124,-500.0,0.00013273,2]